{"text_format":"1","workbook":"xlsx","n_sheets":1,"sheets":["Sheet1"],"not_rendered":{"charts":0,"images":2,"macros":0,"external_links":0,"defined_names":1,"comments":0,"pivot_tables":0},"unopened":[],"bounds":{"document_bytes":16777216,"sheet_cells":100000,"rows_first":2000,"rows_last":500,"rows_between":2000,"halvings":0,"cell_chars":16384,"cell_head_chars":4096},"cells_cut":0,"cells_raw":0,"read":"whole","date_system":"1900"}

{"sheet":"Sheet1","index":0,"n_rows":151,"n_cols":7,"rows_kept":151,"cut":false,"hidden":false,"merged":[[149,4,149,5],[102,4,102,6],[103,4,104,6],[105,4,105,5],[106,4,106,6],[107,1,107,6],[109,1,109,6],[6,4,6,6],[55,4,56,6],[1,4,1,6],[2,4,3,6],[22,5,24,6],[54,4,54,6],[4,4,4,5],[27,5,28,6],[10,4,19,6],[30,3,30,4],[7,1,7,6],[24,1,24,2],[31,1,31,6],[60,1,60,6],[62,1,62,6],[41,1,41,6],[57,4,57,5],[58,4,59,6]]}
[]
[null,null,null,null,"Paton Group"]
[null,null,null,null,"787 W. Woodbury Rd., #10\nAltadena, CA 91001\n800.826.0570"]
[]
[null,null,null,null,"Email order form to:"]
[null,null,null,null,"Darlene Verduzco"]
[null,null,null,null,"Or fax to: 626.791.1476"]
[null,"MAKERBOT - Credit Card Order Form "]
[]
[null,"Printer Model"]
[null,"Serial #",null,null,"NOTE: Please submit via email or fax.\nThank you in advance for your cooperation."]
[null,"PO #"]
[null,"Order Date"]
[null,"Organization Name (req'd)"]
[null,"Ship to Address (req'd)"]
[null,"Bill to Address (req'd)"]
[null,"Contact Person (req'd)"]
[null,"Phone # (req'd)"]
[null,"Title/Position"]
[null,"E-Mail (req'd)"]
[]
[null,"Name on Credit Card\nConvenience Charge:2% Visa/MC, 3% AMEX"]
[null,"CC Billing Address",null,null,null,"MakerBot\nEDU Order Form"]
[null,"E-Mail"]
[null,"We will call you for card information - please do not email card info. "]
[]
[null,"Shipping Priority","Please specify shipping method i.e. Ground, 3Day, 2Day or Overnight\nNote: Shipments coming from MN",null,null,"Grand Total*",{"$f":"SUM(G102,G54,G149)","v":0}]
[null,"Shipping Account",null,null,null,"*Grand Total doesn't include any applicable taxes or shipping"]
[null,"Additional Instructions\nResin/Material Credit"]
[]
[null,"Part Number","Description","Price per Unit",null,"QTY ordered","Sub Total"]
[null,"Smart Extruders & Supplies"]
[null,"MP07325","Pkg Smart Extruder PLUS",null,199,null,{"$f":"E33*F33","v":0}]
[null,"MP07376","Z18 Pkg Smart Extruder PLUS",null,199,null,0]
[null,"MP06713","Kapton Tape 10-Pack (Replicator 2X)",null,30,null,0]
[null,"MP06077","Build Plate Tape (Replicator 5th Generation)",null,10,null,0]
[null,"MP06460","Build Plate Tape (Replicator Mini)",null,10,null,0]
[null,"MP06626","Build Plate Tape (Replicator Z18)",null,100,null,0]
[null,"MP06627","MakerBot Replicator Z18 Build Plate",null,125,null,0]
[null,"MP06628","MakerBot Replicator Z18 Grease Kit",null,10,null,0]
[null,"MP06681","Build Plate for (Replicator 5th Generation)",null,80,null,0]
[null,"Modeling Material"]
[null,"MP06973","Buy 9, Get 10 ABS Bundle",null,460,null,0]
[null,"MP06572","Large 10 Pack Filament Bundle: Buy 9, Get 10",null,430,null,0]
[null,"MP06237","True Black PLA Filament XXL Spool",null,225,null,0]
[null,"MP06238","True White PLA Filament XXL Spool",null,225,null,0]
[null,"MP06239","Warm Gray PLA Filament XXL Spool",null,225,null,0]
[null,"MP06228","Cool Gray PLA Filament XXL Spool",null,225,null,0]
[null,"MP06591","Small 10 Pack Filament Bundle: Buy 9 Get 10",null,160,null,0]
[null,"MP05188","MakerBot Flexible Filament",null,130,null,0]
[null,"MP05785","Glow in the Dark PLA Large Spool / 1.75mm / 1.8mm Filament",null,130,null,0]
[null,"MP06235","Warm Gray PLA Filament XL Spool",null,115,null,{"$f":"E52*R52","v":0}]
[null,"MP06236","Cool Gray PLA Filament XL Spool",null,115,null,{"$f":"E53*F53","v":0}]
[null,null,null,null,null,"Pg 1 sub-total",{"$f":"SUM(G33:G53)","v":0}]
[null,null,null,null,"Paton Group"]
[null,null,null,null,"787 W. Woodbury Rd., #10\nAltadena, CA 91001\n800.826.0570"]
[]
[null,null,null,null,"Email order form to:",null,"Darlene Verduzco"]
[null,null,null,null,"Or fax to: 626.791.1476"]
[]
[null,"MAKERBOT - Credit Card Order Form "]
[null,"Part Number","Description",null,"Price","QTY ordered","Sub Total"]
[null,"Modeling Material (cont.)"]
[null,"MP06233","True Black PLA Filament XL Spool",null,115,null,{"$f":"E64*F64","v":0}]
[null,"MP06234","True White PLA Filament XL Spool",null,115,null,0]
[null,"MP06050","Neon Orange PLA Large Spool / 1.75mm / 1.8mm Filament",null,65,null,0]
[null,"MP06046","Sparkly Black PLA Large Spool / 1.75mm / 1.8mm Filament",null,65,null,0]
[null,"MP06044","Sparkly Dark Blue PLA Large Spool / 1.75mm / 1.8mm Filament",null,65,null,0]
[null,"MP06048","Neon Pink PLA Large Spool / 1.75mm / 1.8mm Filament",null,65,null,0]
[null,"MP06052","Neon Green PLA Large Spool / 1.75mm / 1.8mm Filament",null,65,null,0]
[null,"MP05762","Translucent Red PLA Large Spool / 1.75 / 1.8mm Filament",null,65,null,0]
[null,"MP05764","Translucent Orange PLA Large Spool / 1.75mm / 1.8mm Filament",null,65,null,0]
[null,"MP05758","Translucent Blue PLA Large Spool / 1.75mm / 1.8mm Filament",null,65,null,0]
[null,"MP05766","Translucent Yellow PLA Large Spool / 1.75mm / 1.8mm Filament",null,65,null,0]
[null,"MP05760","Translucent Green PLA Large Spool / 1.75mm / 1.8mm Filament",null,65,null,0]
[null,"MP05417","MakerBot Dissolvable Filament",null,65,null,0]
[null,"MP05768","Translucent Purple PLA Large Spool / 1.75mm / 1.8mm Filament",null,65,null,0]
[null,"MP06877","Robin's Egg PLA Large Spool / 1.75mm / 1.8mm Filament",null,65,null,0]
[null,"MP06878","Lemon Drop PLA Large Spool /1.75mm / 1.8mm Filament",null,65,null,0]
[null,"MP06879","Jadeite PLA Large Spool / 1.75mm / 1.8mm Filament",null,65,null,0]
[null,"MP05795","Glow in the Dark PLA Small Spool / 1.75mm / 1.8mm Filament",null,50,null,0]
[null,"MP01972","True Green ABS 1kg Spool 1.75mm / 1.8mm Filament",null,48,null,0]
[null,"MP05777","True Orange PLA Large Spool / 1.75mm / 1.8mm Filament",null,48,null,0]
[null,"MP05781","True Yellow PLA Large Spool / 1.75mm / 1.8mm Filament",null,48,null,0]
[null,"MP05776","True Blue PLA Large Spool / 1.75mm / 1.8mm Filament",null,48,null,0]
[null,"MP05778","True Purple PLA Large Spool / 1.75mm / 1.8mm Filament",null,48,null,0]
[null,"MP01978","True Orange ABS 1kg Spool / 1.75mm / 1.8mm Filament",null,48,null,0]
[345,"MP01969","True Black ABS 1kg Spool / 1.75mm / 1.8mm Filament",null,48,null,{"$f":"E88*F88","v":0}]
[null,"MP05775","True Black PLA Large Spool / 1.75mm / 1.8mm Filament",null,48,null,0]
[null,"MP05780","True White PLA Large Spool / 1.75mm / 1.8mm Filament",null,48,null,0]
[null,"MP05783","Warm Gray PLA Large Spool / 1.75mm / 1.8mm Filament    ",null,48,null,0]
[null,"MP05784","Cool Gray PLA Large Spool / 1.75mm / 1.8mm Filament",null,48,null,0]
[null,"MP01973","True Blue ABS 1kg Spool / 1.75mm / 1.8mm Filament",null,48,null,0]
[null,"MP05612","Natural PLA Large Spool / 1.75mm / 1.8mm Filament",null,48,null,0]
[null,"MP05952","True Green PLA Large Spool / 1.75mm / 1.8mm Filament",null,48,null,0]
[null,"MP01970","True White ABS Plastic 1kg Spool - 1.75mm / 1.8mm Filament",null,48,null,0]
[null,"MP02901","True Purple ABS 1kg Spool 1.8mm Filament",null,48,null,0]
[null,"MP02915","True Gray ABS 1kg Spool 1.8mm Filament",null,48,null,0]
[null,"MP05779","True Red PLA Large Spool / 1.75mm / 1.8mm Filament",null,48,null,0]
[null,"MP01975","True Yellow ABS 1kg Spool / 1.75mm / 1.8mm Filament",null,48,null,0]
[null,"MP01971","True Red ABS 1kg Spool - 1.75mm / 1.8mm Filament",null,48,null,0]
[null,null,null,null,null,"Pg 2 sub-total",{"$f":"SUM(G64:G101)","v":0}]
[null,null,null,null,"Paton Group"]
[null,null,null,null,"787 W. Woodbury Rd., #10\nAltadena, CA 91001\n800.826.0570"]
[]
[null,null,null,null,"Email order form to:",null,"Darlene Verduzco"]
[null,null,null,null,"Or fax to: 626.791.1476"]
[null,"MAKERBOT - Credit Card Order Form "]
[null,"Part Number","Description",null,"Price","QTY ordered","Sub Total"]
[null,"Modeling Material (cont. 2)"]
[null,"MP06101","Army Green PLA Large Spool / 1.75mm / 1.8mm Filament",null,48,null,{"$f":"E111*F111","v":0}]
[null,"MP06103","Khaki PLA Large Spool / 1.75mm / 1.8mm Filament",null,48,null,{"$f":"E112*F112","v":0}]
[null,"MP06102","Ocean Blue PLA Large Spool / 1.75mm / 1.8mm Filament",null,48,null,0]
[null,"MP06638","Light Brown PLA Large Spool / 1.75mm / 1.8mm Filament",null,48,null,0]
[null,"MP06639","True Brown PLA Large Spool / 1.75mm / 1.8mm Filament",null,48,null,0]
[null,"MP06637","Peach PLA Large Spool / 1.75mm / 1.8mm Filament",null,43,null,0]
[null,"MP01968","Natural ABS 1kg Spool / 1.75mm / 1.8mm Filament",null,43,null,0]
[null,"MP05761","Translucent Green PLA Small Spool / 1.75mm / 1.8mm Filament",null,25,null,0]
[null,"MP06880","Robin's Egg PLA Small Spool / 1.75mm / 1.8mm Filament",null,25,null,0]
[null,"MP06881","Lemon Drop PLA Small Spool / 1.75mm / 1.8mm Filament",null,25,null,0]
[null,"MP06882","Jadeite PLA Small Spool / 1.75mm / 1.8mm Filament",null,25,null,0]
[null,"MP05759","Translucent Blue PLA Small Spool / 1.75mm / 1.8mm Filament",null,25,null,0]
[null,"MP05763","Translucent Red PLA Small Spool / 1.75mm / 1.8mm Filament",null,25,null,0]
[null,"MP05767","Translucent Yellow PLA Small Spool / 1.75mm / 1.8mm Filament",null,25,null,0]
[null,"MP05769","Translucent Purple PLA Small Spool / 1.75mm / 1.8mm Filament",null,25,null,0]
[null,"MP06047","Sparkly Black PLA Small Spool / 1.75mm / 1.8mm Filament",null,25,null,0]
[null,"MP06045","Sparkly Dark Blue PLA Small Spool / 1.75mm / 1.8mm Filament",null,25,null,0]
[null,"MP06049","Neon Pink PLA Small Spool / 1.75mm / 1.8mm Filament",null,25,null,0]
[null,"MP06051","Neon Orange PLA Small Spool / 1.75mm / 1.8mm Filament",null,25,null,0]
[null,"MP06053","Neon Green PLA Small Spool / 1.75mm / 1.8mm Filament",null,25,null,0]
[null,"MP05765","Translucent Orange PLA Small Spool / 1.75mm / 1.8mm Filament",null,25,null,0]
[null,"MP05823","True Black PLA Small Spool / 1.75mm / 1.8mm Filament",null,18,null,0]
[null,"MP05796","True Blue PLA Small Spool / 1.75mm / 1.8mm Filament",null,18,null,0]
[null,"MP05790","True White PLA Small Spool / 1.75mm / 1.8mm Filament",null,18,null,0]
[null,"MP05787","True Orange PLA Small Spool / 1.75mm / 1.8mm Filament",null,18,null,0]
[null,"MP05788","True Purple PLA Small Spool / 1.75mm / 1.8mm Filament",null,18,null,0]
[null,"MP05789","True Red PLA Small Spool / 1.75mm / 1.8mm Filament",null,18,null,0]
[null,"MP05791","True Yellow PLA Small Spool / 1.75mm / 1.8mm Filament",null,18,null,0]
[null,"MP05951","True Green PLA Small Spool / 1.75mm / 1.8mm Filament",null,18,null,0]
[null,"MP05792","Natural PLA Small Spool / 1.75mm / 1.8mm Filament",null,18,null,0]
[null,"MP05793","Warm Gray PLA Small Spool / 1.75mm / 1.8mm Filament",null,18,null,0]
[null,"MP05794","Cool Gray PLA Small Spool / 1.75mm / 1.8mm Filament",null,18,null,0]
[null,"MP06115","Army Green PLA Small Spool / 1.75mm / 1.8mm Filament",null,18,null,0]
[null,"MP06116","Ocean Blue PLA Small Spool / 1.75mm / 1.8mm Filament",null,18,null,0]
[null,"MP06117","Khaki PLA Small Spool / 1.75mm / 1.8mm Filament",null,18,null,0]
[null,"MP06641","Light Brown PLA Small Spool / 1.75mm / 1.8mm Filament",null,18,null,0]
[null,"MP06640","Peach PLA Small Spool / 1.75mm / 1.8mm Filament",null,18,null,0]
[null,"MP06642","True Brown PLA Small Spool / 1.75mm / 1.8mm Filament",null,18,null,0]
[null,null,null,null,"Pg 3 sub-total",null,{"$f":"SUM(G111:G148)","v":0}]
[null,null,null,null,"Grand Total*",null,{"$f":"G149+G102+G54","v":0}]
[null,null,null,null,"*Grand Total does not include any applicable taxes or shipping"]